[Event "*** Titled Tuesday Blitz"]
[Site "Chess.com"]
[Date "2021.04.06"]
[Round "9"]
[White "shreyansshah123"]
[Black "DKmirl"]
[Result "0-1"]
[WhiteElo "1634"]
[BlackElo "1943"]
[TimeControl "180+1"]
[EndTime "11:40:49 PDT"]
[Termination "DKmirl won by resignation"]

1. e4 {[%clk 0:03:00.9]} 1... c5 {[%clk 0:03:00.1]} 2. Nf3 {[%clk 0:03:00.7]}
2... Nc6 {[%clk 0:02:59.5]} 3. d4 {[%clk 0:03:01]} 3... cxd4 {[%clk 0:02:58.8]}
4. Nxd4 {[%clk 0:03:01.9]} 4... g6 {[%clk 0:02:59.4]} 5. Be3 {[%clk 0:03:00.9]}
5... Bg7 {[%clk 0:02:57.5]} 6. c4 {[%clk 0:02:44.8]} 6... Nf6 {[%clk 0:02:55.3]}
7. Nc3 {[%clk 0:02:34.2]} 7... O-O {[%clk 0:02:54.6]} 8. Bd3 {[%clk 0:02:33.1]}
8... Ne5 {[%clk 0:02:52.4]} 9. f4 {[%clk 0:02:26.1]} 9... Nxd3+ {[%clk
0:02:52.4]} 10. Qxd3 {[%clk 0:02:27]} 10... d6 {[%clk 0:02:51.1]} 11. O-O {[%clk
0:02:26]} 11... e5 {[%clk 0:02:46]} 12. Nf3 {[%clk 0:02:21.4]} 12... Ng4 {[%clk
0:02:41.7]} 13. fxe5 {[%clk 0:02:16.1]} 13... Nxe5 {[%clk 0:02:39.4]} 14. Nxe5
{[%clk 0:02:16]} 14... dxe5 {[%clk 0:02:37.3]} 15. Rad1 {[%clk 0:02:16.4]} 15...
Bg4 {[%clk 0:02:28.2]} 16. Ne2 {[%clk 0:02:12.5]} 16... Qxd3 {[%clk 0:02:26.4]}
17. Rxd3 {[%clk 0:02:06.8]} 17... Bxe2 {[%clk 0:02:25.7]} 0-1

[Event "*** Titled Tuesday Blitz"]
[Site "Chess.com"]
[Date "2021.04.06"]
[Round "9"]
[White "tusplingher"]
[Black "onnoelgersma"]
[Result "0-1"]
[WhiteElo "2315"]
[BlackElo "2425"]
[TimeControl "180+1"]
[EndTime "11:41:30 PDT"]
[Termination "onnoelgersma won by resignation"]

1. e4 {[%clk 0:03:00.9]} 1... c5 {[%clk 0:03:00.2]} 2. d4 {[%clk 0:03:00.2]}
2... cxd4 {[%clk 0:02:59.5]} 3. c3 {[%clk 0:02:57.8]} 3... e6 {[%clk 0:02:59.8]}
4. cxd4 {[%clk 0:02:57]} 4... d5 {[%clk 0:03:00.4]} 5. exd5 {[%clk 0:02:54.7]}
5... exd5 {[%clk 0:02:59.9]} 6. Nf3 {[%clk 0:02:53.3]} 6... Nc6 {[%clk
0:03:00.4]} 7. Bb5 {[%clk 0:02:52.2]} 7... Bg4 {[%clk 0:03:00.5]} 8. O-O {[%clk
0:02:51.5]} 8... Bd6 {[%clk 0:03:00.1]} 9. Qa4 {[%clk 0:02:47.3]} 9... Bxf3
{[%clk 0:02:35.5]} 10. Bxc6+ {[%clk 0:02:44.8]} 10... bxc6 {[%clk 0:02:35.7]}
11. Qxc6+ {[%clk 0:02:40.4]} 11... Kf8 {[%clk 0:02:35.3]} 12. gxf3 {[%clk
0:01:56.8]} 12... Rc8 {[%clk 0:02:34.2]} 13. Qa6 {[%clk 0:01:56.2]} 13... Rxc1
{[%clk 0:02:29.6]} 14. Rxc1 {[%clk 0:01:45.6]} 14... Qg5+ {[%clk 0:02:28.3]} 15.
Kf1 {[%clk 0:01:41.5]} 15... Qxc1+ {[%clk 0:02:29.2]} 16. Ke2 {[%clk 0:01:37.4]}
16... Qc4+ {[%clk 0:02:16.7]} 0-1

[Event "*** Titled Tuesday Blitz"]
[Site "Chess.com"]
[Date "2021.04.06"]
[Round "9"]
[White "JQuiroga18"]
[Black "MarkoPe"]
[Result "0-1"]
[WhiteElo "2402"]
[BlackElo "2287"]
[TimeControl "180+1"]
[EndTime "11:41:55 PDT"]
[Termination "MarkoPe won by resignation"]

1. e4 {[%clk 0:03:00.9]} 1... c5 {[%clk 0:02:59.3]} 2. Nf3 {[%clk 0:03:00.6]}
2... d6 {[%clk 0:02:59.5]} 3. d4 {[%clk 0:03:00.6]} 3... cxd4 {[%clk 0:03:00.4]}
4. Nxd4 {[%clk 0:03:01.3]} 4... Nf6 {[%clk 0:03:01.1]} 5. Nc3 {[%clk 0:03:01.7]}
5... Bd7 {[%clk 0:03:01.8]} 6. g3 {[%clk 0:03:01.3]} 6... g6 {[%clk 0:02:55.7]}
7. Bg2 {[%clk 0:03:01]} 7... Bg7 {[%clk 0:02:56.2]} 8. O-O {[%clk 0:03:01.9]}
8... Nc6 {[%clk 0:02:56.7]} 9. Nxc6 {[%clk 0:02:51.6]} 9... Bxc6 {[%clk
0:02:54.7]} 10. Re1 {[%clk 0:02:51.5]} 10... O-O {[%clk 0:02:52.2]} 11. Bg5
{[%clk 0:02:49.3]} 11... Rc8 {[%clk 0:02:46.4]} 12. Qd2 {[%clk 0:02:48.8]} 12...
Qb6 {[%clk 0:02:42.7]} 13. Rab1 {[%clk 0:02:44.3]} 13... Rfd8 {[%clk 0:02:41.3]}
14. Nd5 {[%clk 0:02:32.9]} 14... Bxd5 {[%clk 0:02:40.7]} 15. exd5 {[%clk
0:02:33.8]} 15... Rc7 {[%clk 0:02:31]} 16. b3 {[%clk 0:02:23.5]} 16... Qa6
{[%clk 0:02:06.1]} 17. c4 {[%clk 0:02:23]} 17... b5 {[%clk 0:02:06.4]} 18. Bf1
{[%clk 0:02:12.2]} 18... bxc4 {[%clk 0:02:05.7]} 19. Bxc4 {[%clk 0:02:13.1]}
19... Qb7 {[%clk 0:02:03.6]} 20. Re2 {[%clk 0:02:11.9]} 20... Rxc4 {[%clk
0:02:02.1]} 21. Rbe1 {[%clk 0:01:54.5]} 21... Rc7 {[%clk 0:01:58.8]} 22. Rd1
{[%clk 0:01:52.3]} 22... Rdc8 {[%clk 0:01:56.2]} 0-1

[Event "*** Titled Tuesday Blitz"]
[Site "Chess.com"]
[Date "2021.04.06"]
[Round "9"]
[White "Maddie"]
[Black "VladimirBugayev"]
[Result "0-1"]
[WhiteElo "2064"]
[BlackElo "2248"]
[TimeControl "180+1"]
[EndTime "11:42:42 PDT"]
[Termination "VladimirBugayev won by resignation"]

1. d4 {[%clk 0:03:00.9]} 1... Nf6 {[%clk 0:02:59.3]} 2. e3 {[%clk 0:03:01]} 2...
g6 {[%clk 0:02:53.2]} 3. Bd3 {[%clk 0:03:01.9]} 3... Bg7 {[%clk 0:02:52.8]} 4.
f4 {[%clk 0:03:02.8]} 4... d5 {[%clk 0:02:49]} 5. Nf3 {[%clk 0:03:02.8]} 5...
Bg4 {[%clk 0:02:48]} 6. O-O {[%clk 0:03:02.4]} 6... e6 {[%clk 0:02:47.9]} 7.
Nbd2 {[%clk 0:03:02.5]} 7... O-O {[%clk 0:02:46.3]} 8. c3 {[%clk 0:03:02.8]}
8... Nbd7 {[%clk 0:02:40.2]} 9. Qe1 {[%clk 0:03:02.8]} 9... Bxf3 {[%clk
0:02:39.2]} 10. Nxf3 {[%clk 0:03:02.2]} 10... Ne4 {[%clk 0:02:39.1]} 11. Ne5
{[%clk 0:03:02.3]} 11... f6 {[%clk 0:02:35.7]} 12. Nf3 {[%clk 0:03:00]} 12... c5
{[%clk 0:02:30.1]} 13. a3 {[%clk 0:02:53.6]} 13... e5 {[%clk 0:02:21.2]} 14.
fxe5 {[%clk 0:02:53.1]} 14... fxe5 {[%clk 0:02:19.8]} 15. Rb1 {[%clk 0:02:42.8]}
15... exd4 {[%clk 0:02:18]} 16. exd4 {[%clk 0:02:42]} 16... Re8 {[%clk
0:02:06.2]} 17. dxc5 {[%clk 0:02:35.5]} 17... Ndxc5 {[%clk 0:01:58.8]} 18. Bxe4
{[%clk 0:02:35.2]} 18... dxe4 {[%clk 0:01:32.6]} 19. Ng5 {[%clk 0:02:32.7]}
19... e3 {[%clk 0:01:32.6]} 20. Nf3 {[%clk 0:02:26]} 20... Qd3 {[%clk
0:01:26.6]} 21. Ra1 {[%clk 0:02:01.2]} 21... Nb3 {[%clk 0:01:24.3]} 22. Ra2
{[%clk 0:01:59.8]} 22... e2 {[%clk 0:01:13.3]} 23. Rf2 {[%clk 0:01:58.1]} 23...
Nxc1 {[%clk 0:01:13.2]} 24. Qxc1 {[%clk 0:01:54]} 24... Qd1+ {[%clk 0:01:10.5]}
0-1

[Event "*** Titled Tuesday Blitz"]
[Site "Chess.com"]
[Date "2021.04.06"]
[Round "9"]
[White "C_K_G"]
[Black "gumimis"]
[Result "1-0"]
[WhiteElo "2077"]
[BlackElo "2308"]
[TimeControl "180+1"]
[EndTime "11:42:57 PDT"]
[Termination "C_K_G won by checkmate"]

1. e4 {[%clk 0:02:54.8]} 1... c5 {[%clk 0:02:35.6]} 2. Nf3 {[%clk 0:02:54.7]}
2... d6 {[%clk 0:02:29.5]} 3. c3 {[%clk 0:02:53.3]} 3... Nf6 {[%clk 0:02:27.8]}
4. Bd3 {[%clk 0:02:54.2]} 4... Nc6 {[%clk 0:02:27.1]} 5. Bc2 {[%clk 0:02:55.1]}
5... g6 {[%clk 0:02:27.5]} 6. h3 {[%clk 0:02:55.2]} 6... Bg7 {[%clk 0:02:27]} 7.
O-O {[%clk 0:02:56.1]} 7... O-O {[%clk 0:02:25.8]} 8. Re1 {[%clk 0:02:57]} 8...
e5 {[%clk 0:02:24.6]} 9. d3 {[%clk 0:02:56.7]} 9... h6 {[%clk 0:02:18.4]} 10.
Nbd2 {[%clk 0:02:57.6]} 10... Be6 {[%clk 0:02:18.4]} 11. Nf1 {[%clk 0:02:57.7]}
11... d5 {[%clk 0:02:17]} 12. Ng3 {[%clk 0:02:54.8]} 12... dxe4 {[%clk
0:02:11.5]} 13. dxe4 {[%clk 0:02:55.7]} 13... c4 {[%clk 0:02:10.5]} 14. Qe2
{[%clk 0:02:53.5]} 14... Nd7 {[%clk 0:02:08.4]} 15. Be3 {[%clk 0:02:51]} 15...
Qe7 {[%clk 0:02:06]} 16. Rad1 {[%clk 0:02:49.4]} 16... Nc5 {[%clk 0:02:05.8]}
17. Bxc5 {[%clk 0:02:34]} 17... Qxc5 {[%clk 0:02:04.9]} 18. Rd2 {[%clk
0:02:34.9]} 18... f5 {[%clk 0:02:00.1]} 19. Red1 {[%clk 0:02:20.8]} 19... f4
{[%clk 0:01:57.1]} 20. Nf1 {[%clk 0:02:20.6]} 20... Rad8 {[%clk 0:01:54.9]} 21.
Rxd8 {[%clk 0:02:19.2]} 21... Rxd8 {[%clk 0:01:54.2]} 22. Rxd8+ {[%clk
0:02:19.3]} 22... Nxd8 {[%clk 0:01:55.1]} 23. Qd1 {[%clk 0:02:12.7]} 23... Nc6
{[%clk 0:01:53.6]} 24. b3 {[%clk 0:02:12.4]} 24... cxb3 {[%clk 0:01:45.5]} 25.
Bxb3 {[%clk 0:02:12.4]} 25... Kf7 {[%clk 0:01:40.1]} 26. Qd7+ {[%clk 0:02:10.1]}
26... Qe7 {[%clk 0:01:33.8]} 27. Bxe6+ {[%clk 0:02:09.3]} 27... Kf8 {[%clk
0:01:34.7]} 28. Qc8+ {[%clk 0:02:04.5]} 28... Nd8 {[%clk 0:01:31.2]} 29. Bd5
{[%clk 0:02:02.9]} 29... b5 {[%clk 0:01:23.6]} 30. N1d2 {[%clk 0:02:00.3]} 30...
a5 {[%clk 0:01:23.9]} 31. c4 {[%clk 0:01:59.8]} 31... b4 {[%clk 0:01:23]} 32. c5
{[%clk 0:01:59.3]} 32... a4 {[%clk 0:01:23.3]} 33. c6 {[%clk 0:01:57.1]} 33...
b3 {[%clk 0:01:23.3]} 34. axb3 {[%clk 0:01:56.7]} 34... a3 {[%clk 0:01:24.2]}
35. c7 {[%clk 0:01:53.7]} 35... a2 {[%clk 0:01:23.5]} 36. cxd8=Q+ {[%clk
0:01:52.9]} 36... Qxd8 {[%clk 0:01:24.4]} 37. Qxd8# {[%clk 0:01:52.9]} 1-0

[Event "*** Titled Tuesday Blitz"]
[Site "Chess.com"]
[Date "2021.04.06"]
[Round "9"]
[White "blitzking1729"]
[Black "guillembaches"]
[Result "1-0"]
[WhiteElo "2633"]
[BlackElo "2508"]
[TimeControl "180+1"]
[EndTime "11:43:06 PDT"]
[Termination "blitzking1729 won on time"]

1. Nf3 {[%clk 0:03:00.9]} 1... Nf6 {[%clk 0:02:59.7]} 2. c4 {[%clk 0:02:59.8]}
2... e6 {[%clk 0:02:59.3]} 3. b3 {[%clk 0:02:58.2]} 3... d5 {[%clk 0:02:59.4]}
4. Bb2 {[%clk 0:02:57.6]} 4... Be7 {[%clk 0:02:59.9]} 5. g3 {[%clk 0:02:57.3]}
5... O-O {[%clk 0:03:00.3]} 6. Bg2 {[%clk 0:02:57.1]} 6... b6 {[%clk 0:02:58.7]}
7. O-O {[%clk 0:02:57]} 7... Bb7 {[%clk 0:02:58.9]} 8. e3 {[%clk 0:02:55.7]}
8... c5 {[%clk 0:02:55.2]} 9. Qe2 {[%clk 0:02:54.8]} 9... Nc6 {[%clk 0:02:51.5]}
10. Rd1 {[%clk 0:02:54]} 10... Qc7 {[%clk 0:02:44.6]} 11. Nc3 {[%clk 0:02:52.7]}
11... a6 {[%clk 0:02:43.1]} 12. cxd5 {[%clk 0:02:51.3]} 12... exd5 {[%clk
0:02:39.1]} 13. d4 {[%clk 0:02:50.8]} 13... Rad8 {[%clk 0:02:32.3]} 14. Rac1
{[%clk 0:02:48.7]} 14... Rfe8 {[%clk 0:02:29.1]} 15. dxc5 {[%clk 0:02:42.9]}
15... bxc5 {[%clk 0:02:26.8]} 16. Na4 {[%clk 0:02:42.1]} 16... Qa5 {[%clk
0:02:19.1]} 17. Bc3 {[%clk 0:02:36.3]} 17... Qb5 {[%clk 0:02:13.9]} 18. Qxb5
{[%clk 0:02:35.4]} 18... axb5 {[%clk 0:02:14.8]} 19. Nxc5 {[%clk 0:02:35.3]}
19... Bxc5 {[%clk 0:02:01.3]} 20. Bxf6 {[%clk 0:02:34.9]} 20... Bxe3 {[%clk
0:01:03.3]} 21. Rxc6 {[%clk 0:02:33.7]} 21... gxf6 {[%clk 0:00:51.2]} 22. Rc7
{[%clk 0:02:32.5]} 1-0

[Event "*** Titled Tuesday Blitz"]
[Site "Chess.com"]
[Date "2021.04.06"]
[Round "9"]
[White "GoltsevDmitry2000"]
[Black "A-Fier"]
[Result "0-1"]
[WhiteElo "2742"]
[BlackElo "2735"]
[TimeControl "180+1"]
[EndTime "11:43:09 PDT"]
[Termination "A-Fier won by resignation"]

1. e4 {[%clk 0:03:00]} 1... c5 {[%clk 0:02:59.9]} 2. Nf3 {[%clk 0:03:00.3]} 2...
e6 {[%clk 0:03:00.4]} 3. d4 {[%clk 0:02:57.2]} 3... cxd4 {[%clk 0:03:00.8]} 4.
Nxd4 {[%clk 0:02:58.1]} 4... Nf6 {[%clk 0:03:01.1]} 5. Nc3 {[%clk 0:02:58.2]}
5... Nc6 {[%clk 0:03:01.6]} 6. Ndb5 {[%clk 0:02:57.9]} 6... d6 {[%clk
0:03:01.8]} 7. Be3 {[%clk 0:02:56.2]} 7... a6 {[%clk 0:03:00.7]} 8. Na3 {[%clk
0:02:41.6]} 8... b5 {[%clk 0:02:59.6]} 9. Ne2 {[%clk 0:02:36.6]} 9... Nxe4
{[%clk 0:02:56.5]} 10. Nd4 {[%clk 0:02:35.8]} 10... Bb7 {[%clk 0:02:52.1]} 11.
c3 {[%clk 0:02:28.4]} 11... Nf6 {[%clk 0:02:50.7]} 12. Qd2 {[%clk 0:02:17.6]}
12... Be7 {[%clk 0:02:50.4]} 13. Nac2 {[%clk 0:02:13.3]} 13... O-O {[%clk
0:02:50.4]} 14. Bd3 {[%clk 0:02:11.1]} 14... Rc8 {[%clk 0:02:50.2]} 15. O-O
{[%clk 0:02:10.7]} 15... Ne5 {[%clk 0:02:50.5]} 16. Be2 {[%clk 0:02:10.3]} 16...
Nc4 {[%clk 0:02:50.7]} 17. Qc1 {[%clk 0:02:10.6]} 17... Nxe3 {[%clk 0:02:50.3]}
18. Nxe3 {[%clk 0:02:11.5]} 18... Qb6 {[%clk 0:02:49]} 19. Rd1 {[%clk 0:02:08]}
19... b4 {[%clk 0:02:48.9]} 20. c4 {[%clk 0:02:05.8]} 20... Ne4 {[%clk
0:02:42.8]} 21. Bf3 {[%clk 0:02:01.9]} 21... Nc5 {[%clk 0:02:40]} 22. Rb1 {[%clk
0:01:52.9]} 22... Bf6 {[%clk 0:02:38.7]} 23. b3 {[%clk 0:01:47.1]} 23... Bxd4
{[%clk 0:02:36]} 24. Rxd4 {[%clk 0:01:48]} 24... Bxf3 {[%clk 0:02:35.9]} 25.
gxf3 {[%clk 0:01:27.7]} 25... Nxb3 {[%clk 0:02:35.1]} 26. Rxb3 {[%clk
0:01:28.3]} 26... Qxd4 {[%clk 0:02:34.1]} 27. Rxb4 {[%clk 0:01:28.7]} 27... Rc5
{[%clk 0:02:32.6]} 28. Ra4 {[%clk 0:01:24.4]} 28... a5 {[%clk 0:02:32]} 29. Qb1
{[%clk 0:01:05]} 29... h6 {[%clk 0:02:30]} 30. Ra3 {[%clk 0:00:58.6]} 30... Rg5+
{[%clk 0:02:27.5]} 31. Kh1 {[%clk 0:00:56.4]} 31... Qf4 {[%clk 0:02:27.3]} 32.
Ng2 {[%clk 0:00:38.8]} 32... Qxc4 {[%clk 0:02:24.8]} 33. f4 {[%clk 0:00:37.8]}
33... Rc5 {[%clk 0:02:24.1]} 34. Rg3 {[%clk 0:00:37.8]} 34... Qc1+ {[%clk
0:02:23.7]} 0-1

[Event "*** Titled Tuesday Blitz"]
[Site "Chess.com"]
[Date "2021.04.06"]
[Round "9"]
[White "Michaelson_11"]
[Black "aaaao"]
[Result "0-1"]
[WhiteElo "2198"]
[BlackElo "2578"]
[TimeControl "180+1"]
[EndTime "11:43:12 PDT"]
[Termination "aaaao won by resignation"]

1. e4 {[%clk 0:03:00.9]} 1... e6 {[%clk 0:02:59.5]} 2. d4 {[%clk 0:03:00.1]}
2... d5 {[%clk 0:02:59.6]} 3. Nc3 {[%clk 0:03:00.9]} 3... Bb4 {[%clk 0:02:59.4]}
4. e5 {[%clk 0:03:00.7]} 4... c5 {[%clk 0:02:59.1]} 5. a3 {[%clk 0:03:00.9]}
5... Bxc3+ {[%clk 0:02:59.5]} 6. bxc3 {[%clk 0:03:01.8]} 6... Ne7 {[%clk
0:02:59]} 7. Qg4 {[%clk 0:03:02.3]} 7... Qc7 {[%clk 0:02:58.8]} 8. Bd3 {[%clk
0:03:01]} 8... cxd4 {[%clk 0:02:57.5]} 9. Ne2 {[%clk 0:03:01.6]} 9... dxc3
{[%clk 0:02:54]} 10. Qxg7 {[%clk 0:03:01.3]} 10... Rg8 {[%clk 0:02:54.1]} 11.
Qxh7 {[%clk 0:03:01.5]} 11... Nbc6 {[%clk 0:02:54.4]} 12. Bf4 {[%clk 0:02:31.8]}
12... Bd7 {[%clk 0:02:51.1]} 13. Qh5 {[%clk 0:01:40.3]} 13... O-O-O {[%clk
0:02:45.3]} 14. Nxc3 {[%clk 0:01:35]} 14... Nd4 {[%clk 0:02:44.8]} 15. Ne2
{[%clk 0:01:07.1]} 15... Ndf5 {[%clk 0:02:43.6]} 16. Bxf5 {[%clk 0:00:38.1]}
16... Nxf5 {[%clk 0:02:42.4]} 17. O-O {[%clk 0:00:34.3]} 17... d4 {[%clk
0:02:31]} 18. c3 {[%clk 0:00:24.4]} 18... Bc6 {[%clk 0:02:27.7]} 19. Ng3 {[%clk
0:00:19.5]} 19... d3 {[%clk 0:02:19.4]} 20. Rfd1 {[%clk 0:00:15.5]} 20... Rh8
{[%clk 0:02:13.3]} 21. Qf3 {[%clk 0:00:10.7]} 21... Bxf3 {[%clk 0:02:13.1]} 0-1

[Event "*** Titled Tuesday Blitz"]
[Site "Chess.com"]
[Date "2021.04.06"]
[Round "9"]
[White "elvidirris"]
[Black "malakismayil"]
[Result "0-1"]
[WhiteElo "1990"]
[BlackElo "2265"]
[TimeControl "180+1"]
[EndTime "11:43:17 PDT"]
[Termination "malakismayil won by resignation"]

1. e4 {[%clk 0:03:00.9]} 1... e5 {[%clk 0:02:58.7]} 2. Nf3 {[%clk 0:03:00.3]}
2... Nc6 {[%clk 0:02:58.7]} 3. Bb5 {[%clk 0:02:59.9]} 3... d6 {[%clk 0:02:56.9]}
4. d4 {[%clk 0:02:58.9]} 4... exd4 {[%clk 0:02:55.9]} 5. Nxd4 {[%clk 0:02:58.6]}
5... Bd7 {[%clk 0:02:56.3]} 6. Bc4 {[%clk 0:02:55.2]} 6... Nf6 {[%clk
0:02:50.4]} 7. Nc3 {[%clk 0:02:54.1]} 7... Be7 {[%clk 0:02:49.2]} 8. O-O {[%clk
0:02:45.8]} 8... O-O {[%clk 0:02:47.7]} 9. f3 {[%clk 0:02:42.3]} 9... Re8 {[%clk
0:02:39.9]} 10. Be3 {[%clk 0:02:39.5]} 10... Bf8 {[%clk 0:02:37.2]} 11. Qd2
{[%clk 0:02:36.5]} 11... Ne5 {[%clk 0:02:34.1]} 12. Be2 {[%clk 0:02:33.4]} 12...
g6 {[%clk 0:02:22.8]} 13. Bh6 {[%clk 0:02:19.5]} 13... Bg7 {[%clk 0:02:14.6]}
14. h3 {[%clk 0:02:15.3]} 14... Qe7 {[%clk 0:02:04.6]} 15. Bxg7 {[%clk
0:02:13.6]} 15... Kxg7 {[%clk 0:02:04.4]} 16. Rae1 {[%clk 0:02:02.7]} 16... Nc6
{[%clk 0:02:00.7]} 17. Bc4 {[%clk 0:01:54.5]} 17... Qe5 {[%clk 0:01:57.2]} 18.
Nxc6 {[%clk 0:01:40.7]} 18... Bxc6 {[%clk 0:01:58.1]} 19. f4 {[%clk 0:01:36.5]}
19... Qc5+ {[%clk 0:01:56.9]} 20. Kh1 {[%clk 0:01:27.6]} 20... Qxc4 {[%clk
0:01:56.6]} 21. e5 {[%clk 0:01:23.7]} 21... dxe5 {[%clk 0:01:43.5]} 22. fxe5
{[%clk 0:01:23.5]} 22... Rxe5 {[%clk 0:01:39.8]} 23. Rf4 {[%clk 0:00:45.9]} 0-1

[Event "*** Titled Tuesday Blitz"]
[Site "Chess.com"]
[Date "2021.04.06"]
[Round "9"]
[White "suyu28"]
[Black "ChessWarrior7197"]
[Result "0-1"]
[WhiteElo "2633"]
[BlackElo "2921"]
[TimeControl "180+1"]
[EndTime "11:43:19 PDT"]
[Termination "ChessWarrior7197 won by checkmate"]

1. d4 {[%clk 0:03:00.1]} 1... Nf6 {[%clk 0:02:59.5]} 2. c4 {[%clk 0:03:00.2]}
2... e6 {[%clk 0:02:59.2]} 3. g3 {[%clk 0:03:00.2]} 3... c5 {[%clk 0:02:59.1]}
4. d5 {[%clk 0:03:00]} 4... exd5 {[%clk 0:02:59.3]} 5. cxd5 {[%clk 0:03:00.9]}
5... d6 {[%clk 0:03:00.2]} 6. Nc3 {[%clk 0:03:01.4]} 6... g6 {[%clk 0:03:01.1]}
7. Bg2 {[%clk 0:03:01.7]} 7... Bg7 {[%clk 0:03:01.5]} 8. Nf3 {[%clk 0:03:02.6]}
8... O-O {[%clk 0:03:01.8]} 9. O-O {[%clk 0:03:03]} 9... Re8 {[%clk 0:03:02.7]}
10. Nd2 {[%clk 0:03:02.5]} 10... Nbd7 {[%clk 0:03:00.7]} 11. e4 {[%clk
0:03:01.4]} 11... Ne5 {[%clk 0:02:56.6]} 12. Qc2 {[%clk 0:03:00.6]} 12... Nh5
{[%clk 0:02:53.9]} 13. h3 {[%clk 0:02:55]} 13... f5 {[%clk 0:02:51.8]} 14. f4
{[%clk 0:02:54.7]} 14... Nxg3 {[%clk 0:02:48.9]} 15. fxe5 {[%clk 0:02:54.6]}
15... Nxf1 {[%clk 0:02:49.5]} 16. Nxf1 {[%clk 0:02:53.1]} 16... Bxe5 {[%clk
0:02:50.1]} 17. Qf2 {[%clk 0:02:35.9]} 17... f4 {[%clk 0:02:46.1]} 18. Kh1
{[%clk 0:02:35.4]} 18... Rf8 {[%clk 0:02:45.4]} 19. Nh2 {[%clk 0:02:34.6]} 19...
Bd4 {[%clk 0:02:36.2]} 20. Qe1 {[%clk 0:02:10.7]} 20... f3 {[%clk 0:02:31.2]}
21. Nxf3 {[%clk 0:02:08.8]} 21... Bxh3 {[%clk 0:02:31.7]} 22. Bg5 {[%clk
0:02:00.7]} 22... Qb6 {[%clk 0:02:18.4]} 23. Qd2 {[%clk 0:01:29.7]} 23... Bxg2+
{[%clk 0:02:13.7]} 24. Kxg2 {[%clk 0:01:29.4]} 24... Rxf3 {[%clk 0:02:11.8]} 25.
Kxf3 {[%clk 0:01:27.1]} 25... Rf8+ {[%clk 0:02:12.7]} 26. Kg3 {[%clk 0:01:26.1]}
26... Rf2 {[%clk 0:02:12.1]} 27. Qc1 {[%clk 0:01:02]} 27... c4 {[%clk
0:02:11.7]} 28. Nd1 {[%clk 0:00:42.4]} 28... Be5+ {[%clk 0:02:08.8]} 29. Kg4
{[%clk 0:00:33.7]} 29... h5+ {[%clk 0:02:07]} 30. Kh3 {[%clk 0:00:31.2]} 30...
Rh2# {[%clk 0:02:07.9]} 0-1

[Event "*** Titled Tuesday Blitz"]
[Site "Chess.com"]
[Date "2021.04.06"]
[Round "9"]
[White "Vandros57"]
[Black "zurzan"]
[Result "1-0"]
[WhiteElo "2207"]
[BlackElo "1993"]
[TimeControl "180+1"]
[EndTime "11:43:39 PDT"]
[Termination "Vandros57 won by resignation"]

1. d4 {[%clk 0:03:00.9]} 1... d6 {[%clk 0:02:59.4]} 2. e4 {[%clk 0:02:59.2]}
2... Nf6 {[%clk 0:02:57.1]} 3. Nc3 {[%clk 0:02:57.9]} 3... Nbd7 {[%clk 0:02:57]}
4. Nf3 {[%clk 0:02:56.3]} 4... e5 {[%clk 0:02:56.6]} 5. Bc4 {[%clk 0:02:49.9]}
5... Be7 {[%clk 0:02:55.9]} 6. dxe5 {[%clk 0:02:42.7]} 6... dxe5 {[%clk
0:02:55.7]} 7. O-O {[%clk 0:02:27.5]} 7... c6 {[%clk 0:02:53.1]} 8. Qe2 {[%clk
0:02:07]} 8... Qc7 {[%clk 0:02:51.9]} 9. Rd1 {[%clk 0:01:57.3]} 9... b5 {[%clk
0:02:50.7]} 10. Bb3 {[%clk 0:01:50.6]} 10... a5 {[%clk 0:02:49.3]} 11. a3 {[%clk
0:01:41.9]} 11... O-O {[%clk 0:02:43.8]} 12. Bg5 {[%clk 0:01:39.3]} 12... h6
{[%clk 0:02:41.8]} 13. Bh4 {[%clk 0:01:37.9]} 13... Ba6 {[%clk 0:02:14.7]} 14.
Qe1 {[%clk 0:01:37]} 14... Nc5 {[%clk 0:02:01.8]} 15. Bg3 {[%clk 0:01:33]} 15...
Nfd7 {[%clk 0:01:51.2]} 16. Ba2 {[%clk 0:01:25]} 16... Bf6 {[%clk 0:01:49.1]}
17. h4 {[%clk 0:01:20.5]} 17... Ne6 {[%clk 0:01:44.1]} 18. h5 {[%clk 0:01:18.1]}
18... Nd4 {[%clk 0:01:37.4]} 19. Nxd4 {[%clk 0:01:16.5]} 19... Qb6 {[%clk
0:01:35.6]} 20. Nf5 {[%clk 0:01:15.1]} 20... Nc5 {[%clk 0:01:27.7]} 21. Rd6
{[%clk 0:01:04.7]} 21... Rad8 {[%clk 0:01:19.3]} 22. Rxf6 {[%clk 0:01:03.8]}
22... gxf6 {[%clk 0:01:18.9]} 23. Qe3 {[%clk 0:01:00.8]} 1-0

[Event "*** Titled Tuesday Blitz"]
[Site "Chess.com"]
[Date "2021.04.06"]
[Round "9"]
[White "Grieve72"]
[Black "xurramid77"]
[Result "0-1"]
[WhiteElo "2504"]
[BlackElo "2628"]
[TimeControl "180+1"]
[EndTime "11:43:52 PDT"]
[Termination "xurramid77 won by checkmate"]

1. e4 {[%clk 0:02:55.6]} 1... e5 {[%clk 0:02:59.5]} 2. Nf3 {[%clk 0:02:55.6]}
2... d6 {[%clk 0:02:59.4]} 3. d4 {[%clk 0:02:55]} 3... Nd7 {[%clk 0:02:59.3]} 4.
Bc4 {[%clk 0:02:50.6]} 4... c6 {[%clk 0:02:58.4]} 5. O-O {[%clk 0:02:44.4]} 5...
Be7 {[%clk 0:02:41.4]} 6. a4 {[%clk 0:02:41.9]} 6... Ngf6 {[%clk 0:02:38]} 7.
Re1 {[%clk 0:02:38.3]} 7... O-O {[%clk 0:02:37.3]} 8. a5 {[%clk 0:02:33.9]} 8...
Nxe4 {[%clk 0:02:30.6]} 9. dxe5 {[%clk 0:02:18]} 9... d5 {[%clk 0:02:25.7]} 10.
Bf1 {[%clk 0:02:12.7]} 10... f6 {[%clk 0:02:21.3]} 11. Nbd2 {[%clk 0:02:05.7]}
11... Nxf2 {[%clk 0:02:11.8]} 12. Kxf2 {[%clk 0:01:56.5]} 12... Bc5+ {[%clk
0:02:10.9]} 13. Ke2 {[%clk 0:01:39.2]} 13... fxe5 {[%clk 0:02:08.5]} 14. Nb3
{[%clk 0:01:35.9]} 14... e4 {[%clk 0:01:52.1]} 15. Nfd4 {[%clk 0:01:32.7]} 15...
Ne5 {[%clk 0:01:45.5]} 16. h3 {[%clk 0:01:22.7]} 16... Bb4 {[%clk 0:01:17.2]}
17. Bd2 {[%clk 0:01:08.8]} 17... Qh4 {[%clk 0:01:13.7]} 18. Be3 {[%clk
0:00:36.1]} 18... Bg4+ {[%clk 0:01:12.5]} 19. hxg4 {[%clk 0:00:36.2]} 19...
Qxg4+ {[%clk 0:01:13]} 20. Nf3 {[%clk 0:00:35.9]} 20... exf3+ {[%clk 0:01:13.6]}
21. gxf3 {[%clk 0:00:27.8]} 21... Qxf3# {[%clk 0:01:13.9]} 0-1